bitfinex-derivatives/quotes_SOLF0:USTF0_20240910
["timestamp","ask_amount","ask_price","bid_price","bid_amount"]
[1725950105033,16.24421495,134.05,133.88,10.083]
[1725950105243,16.24421495,134.04,134.0,9.18]
[1725950105428,16.24421495,134.03,134.01,3.75755508]
[1725950105738,16.24421495,134.02,134.01,3.75755508]
[1725950105937,29.42909404,134.06,134.03,3.3572]
[1725950106235,29.42909404,134.06,134.01,3.75755508]
[1725950106439,25.7667,134.06,134.01,3.75755508]
[1725950106632,36.66816007,134.08,134.02,9.18]
[1725950106837,36.66816007,134.08,134.04,3.3568]
[1725950106838,3.3563,134.07,134.04,3.3568]
[1725950107940,25.7666,134.06,134.03,3.3571]
[1725950108137,22.41,134.03,133.93,6.7192]
[1725950108333,31.59,134.03,133.97,9.18]
[1725950108543,34.9474,134.03,133.99,3.358]
[1725950109342,34.9474,134.03,134.0,3.3579]
[1725950109737,31.59,134.03,133.94,4.023]
[1725950109938,31.59,134.03,133.97,9.18]
[1725950111031,2.6068,134.07,133.94,4.023]
[1725950111032,25.0168,134.07,133.94,4.023]
[1725950111240,3.3576,134.02,133.99,3.3582]
[1725950127156,3.3574,134.03,134.0,3.3579]
[1725950127359,22.41,134.06,133.98,9.18]
[1725950127555,22.41,134.04,133.98,9.18]
[1725950127858,3.3574,134.03,133.98,9.18]
[1725950128358,31.59,134.04,133.98,9.18]
[1725950128548,3.3575,134.02,133.99,3.3581]
[1725950132564,3.3573,134.03,134.0,3.358]
[1725950133365,34.9471,134.04,134.0,3.358]
[1725950134068,22.41,134.06,134.02,3.3572]
[1725950134269,22.41,134.04,134.02,3.3572]
[1725950135265,22.41,134.06,134.01,9.18]
[1725950135466,22.41,134.06,134.02,9.18]
[1725950135864,22.41,134.06,134.03,3.3571]
[1725950136966,156.64140367,134.09,134.03,9.18]
[1725950137268,156.64140367,134.09,134.04,9.18]
[1725950137269,22.41,134.08,134.04,9.18]
[1725950138267,153.28550367,134.09,134.04,9.18]
[1725950138461,1.3277,134.15,134.06,9.18]
[1725950138462,3.71790086,134.13,134.06,9.18]
[1725950138658,22.41,134.12,134.06,9.18]
[1725950138865,34.9455,134.11,134.07,3.3562]
[1725950139265,31.59,134.1,134.05,9.18]
[1725950139471,3.3557,134.09,134.06,3.3564]
[1725950140576,34.9456,134.1,134.06,3.3564]
[1725950140774,3.3556,134.1,134.06,3.3564]
[1725950142875,22.41,134.11,134.06,9.18]
[1725950144169,3.3555,134.1,134.07,3.3561]
[1725950144369,9.18,134.09,134.04,1.3775]
[1725950144679,3.75895789,134.12,134.03,4.7325]
[1725950144680,12.5365,134.07,134.03,4.7325]
[1725950144870,12.5365,134.07,134.03,1.3754]
[1725950145072,3.3565,134.07,134.03,1.3754]
[1725950146073,3.3565,134.07,134.04,3.3569]
[1725950148880,22.41,134.08,134.06,3.3565]
[1725950149078,22.41,134.08,134.03,1.3754]
[1725950150082,25.766,134.08,134.05,3.3566]
[1725950151778,25.766,134.08,134.03,1.3754]
[1725950151983,25.766,134.08,134.04,9.18]
[1725950152290,25.766,134.08,134.05,3.3566]
[1725950153989,3.3564,134.07,134.04,3.357]
[1725950154384,34.9464,134.07,134.04,3.357]
[1725950154584,3.3565,134.06,134.04,3.357]
[1725950154985,3.3565,134.06,134.03,3.3571]
[1725950155492,3.3568,134.05,134.02,3.75205193]
[1725950155789,3.3568,134.05,134.02,3.3573]
[1725950155987,3.3568,134.05,134.02,7.02222537]
[1725950156287,3.3566,134.06,134.03,3.3572]
[1725950158389,23.7036,134.16,134.04,9.18]
[1725950158594,22.41,134.1,134.04,9.18]
[1725950158986,31.59,134.1,134.04,9.18]
[1725950159280,31.59,134.1,134.02,3.71082089]
[1725950159485,3.3561,134.08,134.05,3.3566]
[1725950160588,31.59,134.1,134.05,3.3566]
[1725950160589,3.3562,134.07,134.05,3.3566]
[1725950160794,3.3562,134.07,134.03,9.18]
[1725950160795,25.7662,134.07,134.04,3.3569]
[1725950161487,22.41,134.07,134.05,3.3567]
[1725950162485,22.41,134.07,134.02,3.70671884]
[1725950162692,22.41,134.07,134.01,1.364]
[1725950162693,22.41,134.06,134.01,1.364]
[1725950163296,22.41,134.06,134.02,3.3574]
[1725950163297,3.3569,134.05,134.02,3.3574]
[1725950163488,31.59,134.06,134.01,1.364]
[1725950163791,31.59,134.03,133.97,9.18]
[1725950164290,34.9473,134.03,133.99,3.3581]
[1725950165785,31.59,134.03,133.98,3.3584]
[1725950165983,22.41,134.01,133.98,3.3584]
[1725950166195,22.41,134.01,133.96,1.2817]
[1725950166383,22.41,133.99,133.96,4.6406]
[1725950166588,22.41,133.99,133.96,3.3589]
[1725950166989,22.41,133.99,133.95,3.3592]
[1725950166990,25.7684,133.99,133.95,3.3592]
[1725950167883,9.18,134.0,133.95,3.3592]
[1725950167884,12.5381,134.0,133.95,9.18]
[1725950168084,10.5876,134.03,133.98,9.18]
[1725950168287,9.18,134.05,134.0,3.358]
[1725950168489,3.3572,134.04,133.99,9.18]
[1725950168693,9.18,134.05,133.99,9.18]
[1725950168890,3.3574,134.03,133.99,12.5381]
[1725950169495,3.3574,134.03,133.99,3.3581]
[1725950169888,3.3575,134.02,133.99,3.3581]
[1725950171085,3.3574,134.03,133.99,3.3581]
[1725950171290,3.3574,134.03,133.98,9.18]
[1725950171291,24.9874,134.07,133.98,9.18]
[1725950171699,34.9471,134.04,133.98,9.18]
[1725950171899,34.9471,134.04,134.0,3.358]
[1725950172502,3.3573,134.03,134.0,3.358]
[1725950173001,3.3577,134.02,133.99,3.3581]
[1725950173493,12.5377,134.02,133.99,3.3581]
[1725950173796,3.3577,134.02,133.99,3.3581]
[1725950173999,34.9477,134.02,133.99,3.3581]
[1725950175490,25.7677,134.02,133.99,3.3581]
[1725950175793,34.9477,134.02,133.99,3.3581]
[1725950177191,25.7677,134.02,133.99,3.3581]
[1725950177388,34.9477,134.02,133.99,3.3581]
[1725950177692,9.18,134.02,133.96,9.18]
[1725950178299,34.9473,134.03,134.0,3.3578]
[1725950180487,3.3575,134.02,133.99,3.3581]
[1725950184401,3.3575,134.02,134.0,3.358]
[1725950184991,3.3575,134.02,133.99,3.3582]
[1725950185195,31.59,134.01,133.95,9.18]
[1725950185798,3.3581,134.0,133.97,3.3586]
[1725950186299,3.3581,134.0,133.98,3.3585]
[1725950186490,34.9478,134.01,133.95,9.18]
[1725950186694,12.96901,134.02,133.96,9.18]
[1725950187202,16.32661,134.02,133.99,3.3581]
[1725950188100,16.32661,134.02,134.0,3.358]
[1725950188401,3.3576,134.02,134.0,3.358]
[1725950190503,3.76129037,134.03,134.01,3.3577]
[1725950190703,34.9471,134.04,134.01,3.3577]
[1725950190899,3.70492328,134.03,133.97,9.18]
[1725950191101,3.70492328,134.03,133.99,3.358]
[1725950191102,7.06212328,134.03,133.99,3.358]
[1725950191502,3.3572,134.03,133.99,3.358]
[1725950192200,29.55900032,134.04,134.0,3.3579]
[1725950192405,38.73900032,134.04,134.0,3.3579]
[1725950192605,29.55900032,134.04,134.0,3.3579]
[1725950192806,2.5774,134.07,134.01,3.3576]
[1725950192807,3.3568,134.05,134.01,3.3576]
[1725950192994,34.9468,134.05,134.01,3.3576]
[1725950193598,3.357,134.04,134.01,3.3576]
[1725950200211,3.3568,134.05,134.0,9.18]
[1725950200412,1.2936,134.07,134.01,9.18]
[1725950200608,10.4736,134.07,134.01,9.18]
[1725950200808,3.3566,134.06,134.03,3.3571]
[1725950201914,10.4736,134.07,134.01,9.18]
[1725950201915,34.9464,134.07,134.01,9.18]
[1725950202504,3.3565,134.06,134.03,3.3571]
[1725950204816,3.3565,134.06,134.04,3.357]
[1725950205112,12.5364,134.07,134.04,3.357]
[1725950206011,165.830162,134.08,134.05,3.3567]
[1725950206222,9.18,134.1,134.04,9.18]
[1725950206511,9.18,134.1,134.02,3.78974473]
[1725950206512,9.18,134.1,134.05,9.18]
[1725950206716,27.45126727,134.12,134.05,9.18]
[1725950206919,36.63126727,134.12,134.05,9.18]
[1725950207618,36.63126727,134.12,134.07,3.3562]
[1725950207619,3.3555,134.1,134.07,3.3562]
[1725950208016,3.3555,134.1,134.05,9.18]
[1725950208017,22.41,134.11,134.08,3.3559]
[1725950208520,25.7654,134.11,134.08,3.3559]
[1725950209118,3.3556,134.1,134.07,3.3562]
[1725950210017,3.3556,134.1,134.05,9.18]
[1725950210018,31.59,134.09,134.04,9.18]
[1725950210523,3.3562,134.08,134.04,12.5368]
[1725950211016,3.3562,134.08,134.05,3.3567]
[1725950212616,34.9458,134.09,134.06,3.3563]
[1725950212922,31.59,134.09,134.03,4.0578]
[1725950213122,31.59,134.09,134.03,13.2378]
[1725950213711,3.3564,134.07,134.04,3.3569]
[1725950214920,3.3561,134.08,134.05,3.3567]
[1725950215919,34.9458,134.09,134.06,3.3563]
[1725950216323,25.7658,134.09,134.06,3.3563]
[1725950220229,3.356,134.08,134.06,3.3563]
[1725950221223,3.356,134.08,134.05,3.3566]
[1725950221426,22.41,134.09,134.05,3.3566]
[1725950221724,31.59,134.07,134.03,6.0661]
[1725950221930,3.3566,134.06,134.03,6.0661]
[1725950222320,3.3566,134.06,134.04,3.357]
[1725950222923,3.3563,134.07,134.04,3.357]
[1725950229632,3.3566,134.06,134.04,3.357]
[1725950230031,3.3566,134.06,134.03,1.3339]
[1725950230032,3.3566,134.06,134.03,4.691]
[1725950231431,3.3566,134.06,134.04,3.3569]
[1725950232127,34.9464,134.07,134.04,3.3569]
[1725950232331,3.3564,134.07,134.04,3.3569]
[1725950232533,3.3564,134.07,134.05,3.3567]
[1725950233027,31.59,134.1,134.04,9.18]
[1725950233427,22.41,134.1,134.05,9.18]
[1725950233737,3.3558,134.09,134.05,9.18]
[1725950234037,3.3558,134.09,134.06,3.3563]
[1725950234229,3.3558,134.09,134.05,9.18]
[1725950234727,25.7656,134.1,134.07,3.3562]
[1725950235130,3.3556,134.1,134.07,3.3562]
[1725950235525,25.7654,134.11,134.08,3.356]
[1725950237037,3.3555,134.1,134.07,3.3562]
[1725950238943,3.3557,134.09,134.07,3.3562]
[1725950239138,3.3557,134.09,134.03,4.0303]
[1725950239139,3.3557,134.09,134.06,3.3564]
[1725950239940,34.946,134.08,134.05,3.3566]
[1725950240138,31.59,134.08,134.05,3.3566]
[1725950240342,31.59,134.08,134.03,13.2103]
[1725950240745,3.3562,134.07,134.04,3.3568]
[1725950240944,3.3562,134.07,134.03,13.2103]
[1725950241353,34.9461,134.08,134.05,3.3567]
[1725950242349,3.3561,134.08,134.05,3.3567]
[1725950242551,3.3561,134.08,134.04,9.18]
[1725950243548,3.3561,134.08,134.05,3.3567]
[1725950244046,25.7661,134.08,134.05,3.3567]
[1725950247356,25.7661,134.08,134.04,3.3569]
[1725950247357,22.41,134.08,134.04,3.3569]
[1725950247554,22.41,134.07,134.04,3.3569]
[1725950248158,25.7664,134.07,134.04,3.3569]
[1725950249753,25.7664,134.07,134.02,12.97374042]
[1725950249754,22.41,134.07,134.02,3.79374042]
[1725950249949,31.59,134.05,133.98,1.3365]
[1725950250150,31.59,134.02,133.97,1.3248]
[1725950251164,31.59,134.02,133.96,9.18]
[1725950251165,3.3579,134.01,133.96,9.18]
[1725950251963,34.9476,134.02,133.97,9.18]
[1725950252458,34.9476,134.02,133.99,3.3582]
[1725950253759,31.59,134.02,133.99,3.3582]
[1725950253954,25.7673,134.03,133.99,3.3582]
[1725950254149,22.41,134.03,133.99,3.3582]
[1725950254352,3.3577,134.02,133.99,3.3582]
[1725950256552,3.3578,134.01,133.98,3.3584]
[1725950264062,25.7676,134.02,133.99,3.3581]
[1725950264566,34.9476,134.02,133.99,3.3581]
[1725950268375,3.3578,134.01,133.98,3.3584]
[1725950268580,3.3578,134.01,133.96,9.18]
[1725950270066,3.3578,134.01,133.98,3.3583]
[1725950271471,25.768,134.0,133.97,3.3586]
[1725950271661,31.59,134.0,133.93,14.23707866]
[1725950272058,3.3585,133.99,133.95,3.3592]
[1725950272458,9.18,133.98,133.95,3.3592]
[1725950272870,12.5386,133.98,133.95,3.3592]
[1725950273673,34.9486,133.98,133.95,3.3592]
[1725950276373,3.3584,133.99,133.96,3.359]
[1725950277567,22.4,134.0,133.96,9.18]
[1725950277773,31.58,134.02,133.96,9.18]
[1725950277969,31.58,134.02,133.99,3.3582]
[1725950278164,25.7576,134.02,133.99,3.3582]
[1725950280676,25.7578,134.01,133.98,3.3584]
[1725950281377,22.4,134.01,133.98,3.3584]
[1725950283274,22.4,134.01,133.96,9.18]
[1725950283878,22.4,134.01,133.97,9.18]
[1725950284075,22.4,134.03,133.97,9.18]
[1725950284468,22.4,134.03,133.98,9.18]
[1725950284880,22.4,134.03,134.0,3.3578]
[1725950285079,3.3572,134.04,133.98,9.18]
[1725950285271,22.4,134.04,133.98,9.18]
[1725950285876,34.9374,134.03,133.98,9.18]
[1725950286371,34.9374,134.03,133.99,3.358]
[1725950287078,25.7574,134.03,134.0,3.3579]
[1725950288273,25.7571,134.04,134.0,9.18]
[1725950289177,25.7571,134.04,134.01,3.3577]
[1725950289379,3.3571,134.04,134.01,3.3577]
[1725950290182,25.7569,134.05,134.02,3.3575]
[1725950290781,3.357,134.04,134.02,3.3575]
[1725950291483,25.7569,134.05,134.02,3.3575]
[1725950291876,22.4,134.05,134.02,3.3575]
[1725950292971,3.3571,134.04,134.01,3.3576]
[1725950294582,22.4,134.05,134.02,3.3574]
[1725950294583,25.7569,134.05,134.02,3.3574]
[1725950295175,3.357,134.04,134.02,3.3574]
[1725950299079,3.357,134.04,134.01,3.3576]
[1725950300581,25.757,134.04,134.01,3.3576]
[1725950303583,3.3573,134.03,134.01,3.3576]
[1725950305484,3.3573,134.03,134.0,3.3579]
[1725950311801,3.3575,134.02,134.0,3.3579]
[1725950311989,22.4,134.03,133.93,5.05707866]
[1725950312191,31.58,134.02,133.96,9.18]
[1725950312387,3.3579,134.01,133.96,9.18]
[1725950312994,3.3579,134.01,133.97,3.3586]
[1725950314095,3.3579,134.01,133.98,3.3584]
[1725950315003,25.7576,134.02,133.99,3.3581]
[1725950315606,3.3577,134.01,133.99,3.3581]
[1725950323210,25.7576,134.02,133.99,3.3581]
[1725950325217,3.3577,134.01,133.99,3.3581]
[1725950325412,31.58,134.01,133.97,1.3119]
[1725950326516,3.3582,134.0,133.97,4.6705]
[1725950330020,3.3582,134.0,133.97,3.3586]
[1725950334224,25.7578,134.01,133.98,3.3584]
[1725950334914,3.358,134.0,133.98,3.3584]
[1725950335320,22.4,134.01,133.98,3.3584]
[1725950335524,25.7579,134.01,133.98,3.3584]
[1725950341826,22.4,134.02,133.98,9.18]
[1725950342733,34.9373,134.03,134.0,3.3579]
[1725950342927,1.2892,134.05,134.0,12.99850082]
[1725950343124,1.2892,134.05,134.0,9.18]
[1725950343430,1.2892,134.05,134.01,3.3576]
[1725950343826,23.6892,134.05,134.01,3.3576]
[1725950344427,3.357,134.04,134.01,3.3576]
[1725950345030,34.937,134.04,134.01,3.3576]
[1725950349436,1.3856,134.1,134.0,3.73096446]
[1725950349633,22.4,134.05,134.0,3.73096446]
[1725950350034,25.7568,134.05,134.02,3.3573]
[1725950351341,22.4,134.05,134.0,3.73096446]
[1725950351542,22.4,134.05,133.99,10.5249]
[1725950352643,22.4,134.05,134.02,3.3573]
[1725950353636,22.4,134.05,134.01,3.3576]
[1725950353836,22.4,134.05,133.99,10.5249]
[1725950354838,3.3572,134.04,134.0,3.3578]
[1725950358438,9.18,134.05,134.01,3.3576]
[1725950358639,31.58,134.05,134.01,3.3576]
[1725950359037,3.357,134.04,134.01,3.3576]
[1725950360744,3.357,134.04,134.02,3.3574]
[1725950360945,34.9368,134.05,134.02,3.3574]
[1725950362851,3.357,134.04,134.02,3.3574]
[1725950363548,3.357,134.04,134.01,3.3576]
[1725950363951,3.357,134.04,134.02,3.3575]
[1725950365353,3.3568,134.05,134.02,3.3575]
[1725950365551,12.5368,134.05,134.02,3.3575]
[1725950365945,34.9368,134.05,134.02,3.3575]
[1725950366145,25.7568,134.05,134.0,3.76007483]
[1725950366343,25.7568,134.05,133.99,10.5249]
[1725950366944,25.7568,134.05,134.02,3.3573]
[1725950370250,3.357,134.04,134.01,3.3576]
[1725950370453,12.537,134.04,134.01,3.3576]
[1725950376361,12.537,134.04,134.02,3.3575]
[1725950376960,9.18,134.06,134.03,3.3572]
[1725950377158,31.58,134.07,134.03,3.3572]
[1725950377854,3.3567,134.06,134.03,3.3572]
[1725950382758,3.3568,134.05,134.03,3.3572]
[1725950383658,3.3566,134.06,134.03,3.3572]
[1725950386160,22.4,134.05,134.0,6.48767718]
[1725950386365,9.18,134.03,133.99,1.3449]
[1725950386867,12.5375,134.03,134.0,3.3578]
[1725950387270,12.5375,134.03,133.99,1.3449]
[1725950387666,12.5375,134.03,133.99,4.7029]
[1725950389168,12.5375,134.03,134.0,3.358]
[1725950390771,9.18,134.03,134.0,3.358]
[1725950390971,3.3571,134.04,134.0,3.358]
[1725950391681,3.3571,134.04,134.01,3.3577]
[1725950394063,3.3568,134.05,134.01,3.3577]
[1725950394270,3.3568,134.05,134.02,3.3574]
[1725950394973,31.58,134.06,134.02,3.3574]
[1725950394974,34.9366,134.06,134.02,3.3574]
[1725950396072,34.9366,134.06,134.0,12.85946181]
[1725950396073,25.7566,134.06,134.03,3.3572]
[1725950396276,3.3566,134.06,134.03,3.3572]
[1725950398973,22.4,134.08,134.0,14.15636181]
[1725950399174,31.58,134.07,134.0,14.15636181]
[1725950400177,31.58,134.07,134.03,3.3572]
[1725950400178,3.3566,134.06,134.03,3.3572]
[1725950400682,176.97895465,134.09,134.03,9.18]
[1725950400877,31.58,134.08,134.03,9.18]
[1725950401681,3.3563,134.07,134.04,3.3569]
[1725950401881,3.3563,134.07,134.0,6.36376181]
[1725950401882,31.58,134.07,134.0,6.36376181]
[1725950402082,31.58,134.07,134.01,9.18]
[1725950402283,3.3565,134.06,134.02,3.3573]
[1725950402578,31.58,134.05,134.0,1.2969]
[1725950402784,31.58,134.05,133.99,1.3449]
[1725950403082,3.3572,134.04,133.99,1.3449]
[1725950403476,31.58,134.02,133.96,9.18]
[1725950403673,9.18,134.01,133.96,9.18]
[1725950403877,31.58,134.01,133.96,9.18]
[1725950404082,3.3581,134.0,133.96,3.3589]
[1725950405085,3.3581,134.0,133.97,3.3587]
[1725950413604,1.3138,134.04,133.96,9.18]
[1725950413794,22.4,134.04,133.99,9.18]
[1725950414197,25.7571,134.04,134.01,3.3577]
[1725950414788,25.7571,134.04,134.0,3.3579]
[1725950415193,3.3571,134.04,134.0,3.3579]
[1725950416393,3.3571,134.04,134.01,3.3577]
[1725950417899,3.3572,134.03,134.01,3.3577]
[1725950419205,32.9199,134.05,134.02,3.3573]
[1725950419206,31.58,134.05,134.02,3.3573]
[1725950420310,3.357,134.04,134.01,3.3577]
[1725950424013,3.3573,134.03,134.0,3.3578]
[1725950425207,31.58,134.03,133.95,1.3607]
[1725950425413,31.58,134.02,133.96,9.18]
[1725950426409,3.3579,134.01,133.97,3.3585]
[1725950427612,3.358,134.0,133.97,3.3585]
[1725950431318,3.3578,134.01,133.98,3.3585]
[1725950432715,31.58,134.02,133.98,3.3585]
[1725950432920,3.3577,134.02,133.99,3.3582]
[1725950433221,31.58,134.03,133.98,9.18]
[1725950434219,3.3574,134.03,134.0,3.358]
[1725950444421,31.58,134.02,133.95,1.3607]
[1725950444622,31.58,134.02,133.95,10.5407]
[1725950445030,3.3579,134.01,133.95,10.5407]
[1725950445628,31.58,134.02,133.95,10.5407]
[1725950445629,31.58,134.02,133.98,3.3583]
[1725950447131,3.3578,134.01,133.98,3.3583]
[1725950453227,3.358,134.0,133.95,1.3607]
[1725950454039,3.358,134.0,133.96,3.3589]
[1725950455326,34.9378,134.01,133.96,9.18]
[1725950455930,25.7578,134.01,133.96,9.18]
[1725950456134,3.3578,134.01,133.97,3.3585]
[1725950457533,3.3578,134.01,133.98,3.3585]
[1725950458332,34.9376,134.02,133.99,3.3582]
[1725950462639,22.4,134.05,133.98,9.18]
[1725950462945,31.58,134.05,134.0,9.18]
[1725950463133,34.9369,134.05,134.01,3.3576]
[1725950463448,34.9369,134.05,134.0,12.86934284]
[1725950464345,3.357,134.04,134.01,3.3575]
[1725950467744,23.7119,134.08,134.02,3.3573]
[1725950467939,47.84008928,134.08,134.03,9.18]
[1725950468144,31.58,134.08,134.03,9.18]
[1725950468342,34.9362,134.08,134.05,3.3567]
[1725950468941,3.3563,134.07,134.04,3.3569]
[1725950469136,1.2955,134.1,133.94,8.054]
[1725950469137,22.4,134.04,133.94,8.054]
[1725950469342,9.18,134.03,133.97,9.18]
[1725950469552,3.3575,134.02,133.99,3.3581]
[1725950471748,34.9373,134.03,133.97,9.18]
[1725950473854,34.9373,134.03,133.99,3.3581]
[1725950475949,34.9373,134.03,134.0,3.358]
[1725950478351,34.9373,134.03,133.99,3.3582]
[1725950478748,3.3575,134.02,133.99,3.3582]
[1725950479147,9.18,134.04,134.0,3.65071663]
[1725950479345,22.4,134.07,134.0,9.18]
[1725950479548,153.29175673,134.08,134.02,3.3573]
[1725950479549,31.58,134.06,134.02,3.3573]
[1725950479855,153.29175673,134.08,134.04,9.18]
[1725950480062,2.7324,134.12,134.05,9.18]
[1725950480459,3.3555,134.1,134.05,9.18]
[1725950480654,25.7555,134.1,134.05,9.18]
[1725950481258,22.4,134.1,134.07,3.3561]
[1725950481853,25.7556,134.1,134.06,3.3564]
[1725950482955,28.4876,134.12,134.07,3.356]
[1725950483158,37.6676,134.12,134.07,12.536]
[1725950483561,13.8778,134.12,134.07,9.18]
[1725950484162,4.6978,134.12,134.07,9.18]
[1725950484461,12.5352,134.12,134.08,3.3558]
[1725950486760,12.5352,134.12,134.04,6.46849211]
[1725950486761,9.18,134.1,134.04,6.46849211]
[1725950486965,9.18,134.07,134.03,1.2837]
[1725950487164,9.18,134.07,134.02,3.80893763]
[1725950487466,9.18,134.07,133.98,2.6865]
[1725950487467,9.18,134.05,133.99,9.18]
[1725950487866,34.9366,134.06,134.02,3.3573]
[1725950489065,31.58,134.07,134.03,3.3572]
[1725950489767,34.9364,134.07,134.03,3.3572]
[1725950490867,34.9364,134.07,134.02,9.18]
[1725950490868,12.5365,134.06,134.02,3.3574]
[1725950491057,34.9365,134.06,134.02,3.3574]
[1725950492865,3.3564,134.07,134.03,3.3572]
[1725950493066,25.7564,134.07,134.03,3.3572]
[1725950493979,31.58,134.06,134.0,9.18]
[1725950494574,3.3569,134.05,134.01,7.17943004]
[1725950496668,3.3569,134.05,134.01,3.3576]
[1725950496874,34.9369,134.05,134.01,3.3576]
[1725950498573,34.9369,134.05,134.02,3.3575]
[1725950499768,3.3569,134.05,134.02,3.3575]
[1725950501173,1.3683,134.08,134.01,9.18]
[1725950501367,22.4,134.06,134.01,9.18]
[1725950501873,25.7566,134.06,134.01,9.18]
[1725950502572,25.7566,134.06,134.02,3.3574]
[1725950503864,25.7566,134.06,134.03,3.3572]
[1725950505972,25.7566,134.06,134.01,9.18]
[1725950506178,25.7568,134.05,134.02,3.3574]
[1725950508076,25.7568,134.05,134.01,3.3576]
[1725950508280,25.7568,134.05,133.99,9.18]
[1725950509390,25.7568,134.05,134.01,3.3575]
[1725950509590,25.7568,134.05,134.01,7.0834298]
[1725950510092,3.3573,134.03,134.0,3.3579]
[1725950510587,3.3573,134.03,134.0,7.17637167]
[1725950511186,22.4,134.04,134.0,3.3579]
[1725950511387,22.4,134.01,133.87,6.7221]
[1725950511590,31.58,134.01,133.93,2.7178]
[1725950511791,3.358,134.0,133.94,9.18]
[1725950512091,3.358,134.0,133.96,3.3589]
[1725950519297,34.938,134.0,133.96,3.3589]
[1725950520495,22.4,133.98,133.93,6.44186403]
[1725950520804,22.4,133.98,133.87,8.0141]
[1725950520805,31.58,133.97,133.91,9.18]
[1725950520996,12.539,133.96,133.92,3.78378887]
[1725950521302,31.58,133.96,133.91,9.18]
[1725950521599,31.58,133.96,133.88,2.6889]
[1725950521600,31.58,133.95,133.88,2.6889]
[1725950521793,31.58,133.93,133.89,3.80432453]
[1725950522587,31.58,133.93,133.89,7.16502453]
[1725950522588,34.9398,133.93,133.89,7.16502453]
[1725950523095,157.43232422,133.98,133.89,3.80432453]
[1725950523096,22.4,133.97,133.89,3.80432453]
[1725950523301,22.4,133.97,133.89,12.98432453]
[1725950523601,22.4,133.94,133.89,12.98432453]
[1725950524294,22.4,133.94,133.91,3.3602]
[1725950525997,9.18,133.95,133.92,3.3599]
[1725950526198,31.58,133.95,133.92,3.3599]
[1725950527395,34.9393,133.95,133.92,3.3599]
[1725950528304,31.58,133.95,133.92,3.3599]
[1725950528704,34.9392,133.95,133.92,3.3599]
[1725950529205,34.9392,133.95,133.91,3.3602]
[1725950532395,3.3595,133.94,133.91,3.3602]
[1725950532796,9.18,133.94,133.9,3.3605]
[1725950533001,22.4,133.93,133.9,3.3605]
[1725950533200,25.7599,133.93,133.88,2.6889]
[1725950533601,25.7599,133.93,133.88,6.41723881]
[1725950533801,22.4,133.93,133.88,6.41723881]
[1725950533995,22.4,133.93,133.88,15.59723881]
[1725950535107,25.7598,133.93,133.9,3.3605]
[1725950535903,22.4,133.93,133.9,3.3605]
[1725950537910,25.7598,133.93,133.9,3.3605]
[1725950541307,25.7598,133.93,133.89,3.3606]
[1725950541498,25.76,133.92,133.89,3.3606]
[1725950541810,31.58,133.91,133.81,10.47735315]